bitfinex-derivatives/quotes_SOLF0:USTF0_20251125
["timestamp","ask_amount","ask_price","bid_price","bid_amount"]
[1764103864271,8.58260023,137.68,137.67,1.76741166]
[1764103865979,2.98,137.67,137.65,0.04955728]
[1764103866174,3.02662549,137.68,137.66,1.76716252]
[1764103866474,8.53934416,137.67,137.65,0.04955728]
[1764103866779,2.98,137.67,137.66,1.76805111]
[1764103866977,8.53974608,137.67,137.66,1.76805111]
[1764103867179,5.55974608,137.67,137.66,1.76805111]
[1764103867375,5.55974608,137.67,137.66,3.16]
[1764103868071,5.55974608,137.67,137.65,3.20955728]
[1764103868271,5.55974608,137.66,137.65,3.20955728]
[1764103868582,0.04662549,137.68,137.65,3.20955728]
[1764103868765,0.04662549,137.68,137.67,3.16]
[1764103870977,2.98,137.76,137.69,3.16]
[1764103871184,8.54628602,137.75,137.72,4.92588906]
[1764103871378,2.98,137.76,137.73,3.16]
[1764103871580,2.98,137.76,137.74,1.76588906]
[1764103871783,5.56624634,137.76,137.74,4.92588906]
[1764103871979,0.05136247,137.76,137.74,3.21235085]
[1764103872185,5.61760881,137.76,137.74,3.21235085]
[1764103872381,3.03136247,137.76,137.75,1.7648675]
[1764103873291,0.05136247,137.76,137.75,1.7648675]
[1764103873685,0.05136247,137.76,137.75,3.16]
[1764103874189,0.05136247,137.76,137.74,3.21235085]
[1764103875090,3.03136247,137.76,137.74,0.05235085]
[1764103875392,3.03136247,137.76,137.75,1.76404804]
[1764103875891,8.59803413,137.76,137.74,0.05235085]
[1764103876192,3.03136247,137.76,137.74,0.05235085]
[1764103876879,8.59803413,137.76,137.74,0.05235085]
[1764103877284,3.03136247,137.76,137.75,1.76434956]
[1764103878088,0.05136247,137.76,137.75,1.76434956]
[1764103878494,0.05136247,137.76,137.74,3.17235085]
[1764103879987,0.05136247,137.76,137.75,1.76323126]
[1764103880191,3.22136247,137.76,137.75,1.76323126]
[1764103880391,8.76012579,137.76,137.75,1.76323126]
[1764103880894,3.17,137.75,137.71,3.12]
[1764103881090,8.73464841,137.75,137.73,1.76365784]
[1764103881295,8.71075414,137.74,137.73,1.76365784]
[1764103881790,3.17,137.73,137.62,3.12]
[1764103882089,0.05299382,137.69,137.67,3.12]
[1764103887392,0.05299382,137.69,137.67,9.6603]
[1764103887595,0.05299382,137.69,137.68,3.12]
[1764103891199,8.75049214,137.69,137.66,0.0512476]
[1764103891396,3.17,137.67,137.59,3.12]
[1764103891592,8.69749832,137.66,137.59,3.12]
[1764103891797,5.52749832,137.65,137.59,3.12]
[1764103891997,3.17,137.65,137.56,3.12]
[1764103892192,9.49888139,137.63,137.53,3.12]
[1764103892394,0.0517281,137.59,137.57,0.04039106]
[1764103892598,3.2117281,137.59,137.57,0.04039106]
[1764103892808,0.0517281,137.59,137.57,3.16039106]
[1764103893503,3.16,137.65,137.58,3.12]
[1764103893703,5.52878868,137.64,137.62,1.76727591]
[1764103893905,5.52878868,137.63,137.59,3.12]
[1764103894102,22.43493586,137.65,137.59,3.12]
[1764103894309,5.52699447,137.64,137.63,1.76649963]
[1764103894606,8.68699447,137.64,137.62,0.05266008]
[1764103894805,3.16,137.64,137.62,0.05266008]
[1764103895498,0.05476202,137.65,137.62,3.17266008]
[1764103895697,5.612351,137.69,137.63,3.12]
[1764103895904,8.68418583,137.68,137.67,1.76542709]
[1764103896198,8.68418583,137.68,137.67,1.76658125]
[1764103897103,0.04862821,137.69,137.67,3.12]
[1764103897301,5.52396069,137.68,137.66,0.04669272]
[1764103897500,5.52396069,137.67,137.66,3.16669272]
[1764103898204,3.20862821,137.69,137.66,3.16669272]
[1764103898508,5.52375007,137.68,137.66,3.16669272]
[1764103898808,0.04862821,137.69,137.67,6.5402]
[1764103898994,0.04862821,137.69,137.68,1.7664444]
[1764103899200,5.57144651,137.69,137.68,1.7664444]
[1764103899803,0.04862821,137.69,137.68,4.8864444]
[1764103900003,0.04862821,137.69,137.68,3.12]
[1764103901415,5.52133578,137.72,137.69,3.12]
[1764103901712,8.78046221,137.74,137.69,3.12]
[1764103901916,5.52133467,137.73,137.72,4.88483933]
[1764103902213,5.52133467,137.73,137.72,3.12]
[1764103904017,0.05127925,137.74,137.72,9.6579]
[1764103904314,0.05127925,137.74,137.73,3.12]
[1764103904516,5.57069988,137.74,137.73,3.12]
[1764103906114,3.17,137.73,137.71,0.04946895]
[1764103906315,5.66035596,137.74,137.73,3.12]
[1764103906613,5.57227204,137.74,137.73,3.12]
[1764103908919,5.57227204,137.74,137.72,9.6278]
[1764103909221,0.05127925,137.74,137.72,9.6278]
[1764103909719,5.60862739,137.77,137.74,9.627]
[1764103909916,5.51895675,137.76,137.75,1.76224474]
[1764103916219,5.51895675,137.76,137.75,4.85224474]
[1764103916527,5.51895675,137.76,137.75,3.09]
[1764103916824,3.01,137.75,137.74,0.05013179]
[1764103917028,8.52895675,137.75,137.74,0.05013179]
[1764103919119,3.01,137.74,137.72,6.5379]
[1764103919425,3.01,137.74,137.73,1.76375472]
[1764103919626,8.53451315,137.74,137.73,1.76375472]
[1764103920720,1.45,137.73,137.7,6.5387]
[1764103921024,1.45,137.71,137.7,6.5387]
[1764103921222,5.52451315,137.71,137.7,9.4087]
[1764103921528,3.70932338,137.71,137.7,9.4087]
[1764103921830,0.05251248,137.72,137.71,2.87]
[1764103922018,0.051538,137.73,137.72,2.87]
[1764103922223,0.05404978,137.74,137.72,2.87]
[1764103922425,0.05404978,137.74,137.73,1.7648004]
[1764103922628,0.05404978,137.74,137.72,2.87]
[1764103923221,1.50404978,137.74,137.71,0.05472694]
[1764103923430,1.50404978,137.74,137.72,8.30249145]
[1764103923626,1.50404978,137.74,137.73,1.76449145]
[1764103924426,1.50404978,137.74,137.71,2.92472694]
[1764103924732,1.50404978,137.74,137.72,9.408]
[1764103924733,0.05404978,137.74,137.72,9.408]
[1764103924939,0.05404978,137.74,137.73,2.87]
[1764103926133,0.05404978,137.74,137.73,9.4075]
[1764103927331,0.05404978,137.74,137.71,6.59322694]
[1764103927527,0.05404978,137.74,137.71,9.46322694]
[1764103927935,0.05404978,137.74,137.71,2.92472694]
[1764103928935,0.05404978,137.74,137.73,6.5375]
[1764103930444,5.61179608,137.79,137.77,2.87]
[1764103930735,1.5,137.81,137.78,1.76096439]
[1764103931436,1.5519284,137.81,137.78,1.80797504]
[1764103931736,7.14552869,137.81,137.78,0.04701065]
[1764103932035,1.5519284,137.81,137.78,1.80746745]
[1764103932238,1.5,137.8,137.78,0.04701065]
[1764103932430,1.5,137.8,137.78,1.80716123]
[1764103932632,1.5,137.8,137.78,0.04701065]
[1764103932835,1.5,137.8,137.78,1.807162]
[1764103933036,1.5,137.8,137.78,0.04701065]
[1764103933236,1.5,137.8,137.78,1.807162]
[1764103933435,5.49262758,137.79,137.78,6.58211065]
[1764103935135,5.49262758,137.79,137.78,0.04701065]
[1764103935341,6.99262758,137.79,137.78,1.80664104]
[1764103935528,5.49262758,137.79,137.78,0.04701065]
[1764103935732,5.49262758,137.79,137.78,1.8064793]
[1764103935932,0.0519284,137.81,137.78,4.6764793]
[1764103936140,5.49019013,137.8,137.79,1.75915123]
[1764103936541,5.49019013,137.8,137.79,8.29345123]
[1764103936741,5.49019013,137.8,137.79,6.5343]
[1764103937330,5.49019013,137.8,137.78,2.91701065]
[1764103937635,0.0519284,137.81,137.79,1.75977978]
[1764103937842,5.49146008,137.8,137.79,1.75977978]
[1764103939044,6.99146008,137.8,137.79,1.75977978]
[1764103939641,5.49146008,137.8,137.79,4.67977978]
[1764103939841,21.04964891,137.96,137.89,101.5757]
[1764103940042,5.59353319,137.95,137.93,1.75749221]
[1764103940250,5.59353319,137.99,137.95,101.53]
[1764103940442,3.03,138.01,137.97,1.75749221]
[1764103940743,3.03,137.99,137.98,0.05111417]
[1764103941142,3.03,137.99,137.93,6.5278]
[1764103941143,28.11,137.99,137.93,6.5278]
[1764103941353,3.03,137.98,137.94,1.75302085]
[1764103941540,25.08,138.0,137.93,1.75302085]
[1764103941746,3.03,137.99,137.95,1.75302085]
[1764103941945,3.03,137.99,137.94,6.5272]
[1764103942246,3.03,137.97,137.95,1.79929664]
[1764103942441,3.03,137.97,137.95,0.0494763]
[1764103943246,0.04701089,137.98,137.95,0.0494763]
[1764103943651,3.07701089,137.98,137.95,0.0494763]
[1764103945355,3.07701089,137.98,137.89,6.5297]
[1764103945555,3.03,137.97,137.92,1.74474318]
[1764103945757,3.03,137.96,137.85,101.6057]
[1764103946145,3.0764732,137.92,137.89,0.04820984]
[1764103946858,3.0764732,137.92,137.9,1.74638374]
[1764103947048,0.0464732,137.92,137.9,1.74638374]
[1764103947256,0.0464732,137.92,137.91,1.74638374]
[1764103947551,0.0464732,137.92,137.89,6.57790984]
[1764103947955,3.0764732,137.92,137.89,6.57790984]
[1764103948256,3.0764732,137.92,137.9,1.74580207]
[1764103949059,3.0764732,137.92,137.81,101.6345]
[1764103949263,3.03,137.92,137.81,101.6345]
[1764103949963,3.03,137.92,137.86,0.0465156]
[1764103950170,3.07704332,137.89,137.88,1.74639043]
[1764103950461,3.03,137.89,137.88,1.74639043]
[1764103951558,0.05125867,137.9,137.88,1.74639043]
[1764103951765,3.08125867,137.9,137.88,1.74639043]
[1764103952356,3.08125867,137.9,137.87,0.05443754]
[1764103952964,28.14125867,137.9,137.87,0.05443754]
[1764103953173,3.03,137.89,137.87,0.05443754]
[1764103953868,3.03,137.89,137.82,6.533]
[1764103954070,3.03,137.89,137.84,1.74811059]
[1764103954273,3.03,137.87,137.84,1.74811059]
[1764103954865,28.14528121,137.87,137.84,1.79424005]
[1764103955057,28.14528121,137.87,137.84,0.04612946]
[1764103955269,3.03,137.86,137.84,1.79430824]
[1764103955571,3.03,137.86,137.84,0.04612946]
[1764103955870,3.03,137.86,137.84,1.79449049]
[1764103956069,3.03,137.86,137.84,0.04612946]
[1764103956271,3.03,137.86,137.84,1.79490851]
[1764103956466,3.03,137.86,137.84,0.04612946]
[1764103957064,3.03,137.86,137.79,6.5344]
[1764103957264,3.03,137.86,137.82,1.74962673]
[1764103957965,3.03,137.84,137.82,1.74962673]
[1764103961379,3.0786791,137.85,137.82,8.28272673]
[1764103961577,28.1186791,137.85,137.83,1.74962673]
[1764103961779,3.0786791,137.85,137.83,1.74962673]
[1764103961979,28.1186791,137.85,137.83,1.74962673]
[1764103962279,3.03,137.84,137.83,1.74962673]
[1764103962677,3.03,137.84,137.82,1.75077247]
[1764103962980,3.03,137.84,137.73,112.69998359]
[1764103962981,3.0781602,137.84,137.73,112.69998359]
[1764103963275,3.07635012,137.81,137.79,6.5346]
[1764103963683,0.04635012,137.81,137.79,6.5346]
[1764103965375,3.07635012,137.81,137.77,6.5354]
[1764103965581,3.07635012,137.81,137.8,0.00296059]
[1764103965778,9.61015012,137.81,137.72,101.7031]
[1764103965984,0.0465712,137.78,137.71,101.707]
[1764103966277,0.0465712,137.78,137.73,6.5372]
[1764103966278,3.0765712,137.78,137.73,6.5372]
[1764103966781,3.0765712,137.78,137.76,1.7574215]
[1764103967582,3.0765712,137.78,137.75,1.7595285]
[1764103967782,3.07616998,137.78,137.75,1.7595285]
[1764103968479,3.07616998,137.78,137.73,0.3]
[1764103968784,2.99,137.76,137.75,1.75968966]
[1764103970384,28.05,137.76,137.75,1.75968966]
[1764103970978,2.99,137.75,137.74,1.75968966]
[1764103971884,2.99,137.75,137.73,6.5374]
[1764103973190,0.04634791,137.76,137.74,6.8369]
[1764103973391,0.04634791,137.76,137.75,1.76092645]
[1764103973689,0.04634791,137.76,137.74,6.8369]
[1764103974490,3.03634791,137.76,137.71,0.3]
[1764103974684,3.03634791,137.76,137.74,1.76158289]
[1764103974885,0.04634791,137.76,137.75,0.3]
[1764103978893,2.99,137.84,137.77,101.912]
[1764103979191,2.99,137.87,137.81,103.64281991]
[1764103979392,2.99,137.9,137.84,1.76111991]
[1764103979596,3.08,137.88,137.85,1.76111991]
[1764103979792,3.08,137.88,137.82,101.6293]
[1764103979998,3.13326209,137.88,137.85,0.04634791]
[1764103980499,3.13326209,137.88,137.79,0.29]
[1764103980685,3.08,137.88,137.82,1.75999619]
[1764103980890,25.08,137.87,137.83,2.04999619]
[1764103981090,25.08,137.87,137.84,1.75999619]
[1764103981495,25.12822889,137.87,137.85,8.29140549]
[1764103981802,28.20822889,137.87,137.85,6.5317]
[1764103981992,3.12822889,137.87,137.85,6.5317]
[1764103983293,3.12822889,137.87,137.83,6.8226]
[1764103983596,3.12822889,137.87,137.85,1.76116359]
[1764103984202,0.04822889,137.87,137.85,1.76116359]
[1764103984402,0.04822889,137.87,137.86,1.76116359]
[1764103984603,3.12822889,137.87,137.84,6.5323]
[1764103984798,3.12822889,137.87,137.85,1.76132401]
[1764103985005,3.12822889,137.87,137.84,1.76132401]
[1764103986200,3.08,137.86,137.85,1.76132401]
[1764103986999,3.08,137.86,137.84,1.76132401]
[1764103987491,25.10822889,137.87,137.84,1.76132401]
[1764103987695,3.08,137.86,137.85,1.76132401]
[1764103987894,28.14,137.86,137.85,1.76132401]
[1764103988402,28.14,137.86,137.81,0.29]
[1764103988403,3.08,137.85,137.81,0.29]
[1764103988604,3.08,137.85,137.83,1.76691912]
[1764103989203,3.08,137.85,137.84,1.76691912]
[1764103989396,3.08,137.85,137.81,0.29]
[1764103989596,3.08,137.85,137.84,1.76832215]
[1764103989803,3.08,137.84,137.78,6.8249]
[1764103990005,3.08,137.84,137.81,1.76816746]
[1764103990298,0.04765127,137.84,137.82,0.29]
[1764103990497,25.08765127,137.84,137.82,2.05816746]
[1764103990698,25.08765127,137.84,137.83,1.76816746]
[1764103991705,0.04765127,137.84,137.83,1.76816746]
[1764103992800,0.04765127,137.84,137.77,101.6634]
[1764103992801,3.12765127,137.84,137.74,101.6878]
[1764103993002,3.12765127,137.84,137.75,0.29]
[1764103993003,3.08,137.79,137.75,0.29]
[1764103993398,28.12,137.78,137.72,8.5976]
[1764103993607,0.05298778,137.76,137.73,2.06]
[1764103993994,0.05298778,137.76,137.74,6.537]
[1764103994210,0.05298778,137.76,137.74,8.597]
[1764103994596,0.05298778,137.76,137.74,2.06]
[1764103995002,0.05298778,137.76,137.71,2.06]
[1764103995309,0.05298778,137.76,137.73,2.06]
[1764103996506,0.05298778,137.76,137.73,8.5974]
[1764103997714,3.22298778,137.76,137.75,1.77766907]
[1764104000116,3.22298778,137.76,137.74,1.77832804]
[1764104000510,3.17,137.75,137.69,6.5393]
[1764104000711,3.17,137.81,137.71,3.03]
[1764104001016,33.45007578,137.81,137.74,3.03]
[1764104001211,3.17,137.8,137.76,3.03]
[1764104001414,25.06,137.8,137.76,3.03]
[1764104001610,5.24007578,137.84,137.82,6.5332]
[1764104001811,0.05439538,137.84,137.83,1.77487758]
[1764104002011,0.05439538,137.84,137.82,0.0508046]
[1764104002613,0.05439538,137.84,137.82,3.0808046]
[1764104002820,0.05439538,137.84,137.83,1.77506536]
[1764104004124,3.17,137.88,137.82,0.0508046]
[1764104004328,3.17,137.88,137.84,1.77463964]
[1764104005023,3.21905864,137.87,137.84,1.77463964]
[1764104005218,3.21905864,137.87,137.84,1.82670379]
[1764104005419,3.21905864,137.87,137.84,0.05206415]
[1764104005618,3.21905864,137.87,137.84,1.8271046]
[1764104005818,3.21905864,137.87,137.84,0.05206415]
[1764104006018,3.21905864,137.87,137.84,1.82697318]
[1764104006524,3.21905864,137.87,137.84,0.05206415]
[1764104006717,3.21905864,137.87,137.84,1.82638869]
[1764104006916,3.21905864,137.87,137.84,0.05206415]
[1764104007119,28.29905864,137.87,137.84,1.82638936]
[1764104007418,28.29905864,137.87,137.84,0.05206415]
[1764104007614,0.04905864,137.87,137.85,3.03]
[1764104007926,0.04905864,137.87,137.86,3.03]
[1764104008425,0.04905864,137.87,137.84,3.08206415]
[1764104008619,0.04905864,137.87,137.85,3.03]
[1764104008820,0.04905864,137.87,137.85,9.5617]
[1764104009118,0.04905864,137.87,137.86,3.03]
[1764104016229,3.17,137.91,137.88,3.03]
[1764104016528,28.23,137.91,137.88,3.03]
[1764104016720,3.17,137.94,137.89,1.76793776]
[1764104016921,3.17,137.93,137.89,4.79793776]
[1764104017121,3.17,137.93,137.87,6.5305]
[1764104017428,0.05004536,137.91,137.89,1.81568077]
[1764104017629,0.05004536,137.91,137.89,0.04815961]
[1764104017829,0.05004536,137.91,137.89,1.81611962]
[1764104018017,0.05004536,137.91,137.89,0.04815961]
[1764104018222,0.05004536,137.91,137.89,1.81662843]
[1764104018418,0.05004536,137.91,137.9,3.03]
[1764104023134,0.05004536,137.91,137.89,9.60805961]
[1764104023727,3.17,137.97,137.9,9.5592]
[1764104023926,3.17,137.94,137.91,1.7639085]
[1764104024123,3.17,137.94,137.92,1.7639085]
[1764104024323,3.17,137.94,137.9,3.03]
[1764104024623,3.17,137.94,137.92,1.76307389]
[1764104024822,3.22374729,137.94,137.92,1.8183092]
[1764104025023,9.75144729,137.94,137.92,0.05523531]
[1764104025226,3.17,137.93,137.92,0.05523531]
[1764104025819,3.17,137.93,137.87,6.5306]
[1764104026023,3.17,137.93,137.89,4.79405986]
[1764104026228,3.17,137.93,137.89,3.03]
[1764104026533,3.17,137.92,137.87,3.03]
[1764104026732,3.17,137.9,137.88,1.76384666]
[1764104027034,25.06,137.89,137.84,3.03]
[1764104027233,2.70166923,137.91,137.84,3.03]
[1764104027234,25.06,137.88,137.87,1.76454775]
[1764104027629,25.06,137.88,137.84,3.03]
[1764104027630,25.06,137.88,137.86,1.76454775]
[1764104027925,0.05571583,137.88,137.87,4.67454775]
[1764104028129,25.11571583,137.88,137.87,2.91]
[1764104029229,25.11571583,137.88,137.86,0.05490565]
[1764104029429,28.12571583,137.88,137.87,1.7643235]
[1764104029632,25.11571583,137.88,137.87,1.76397668]
[1764104030333,28.12571583,137.88,137.87,1.76397668]
[1764104030532,28.12571583,137.88,137.86,0.05490565]
[1764104030733,3.01,137.87,137.86,0.05490565]
[1764104032839,3.01,137.87,137.81,2.91]
[1764104033032,3.01,137.87,137.84,1.76568889]
[1764104033739,3.01,137.87,137.84,1.81311373]
[1764104033925,3.01,137.87,137.84,0.04742484]
[1764104034131,3.01,137.87,137.84,1.81299592]
[1764104034432,3.01,137.85,137.84,0.04742484]
[1764104034739,3.01,137.85,137.78,2.91]
[1764104035134,3.01,137.84,137.78,2.91]
[1764104035338,3.01,137.82,137.74,2.91]
[1764104035536,3.01,137.8,137.74,2.91]
[1764104035741,3.01,137.79,137.77,1.7668734]
[1764104035933,3.06226246,137.78,137.77,1.7668734]
[1764104036646,0.05226246,137.78,137.77,1.7668734]
[1764104036833,25.11226246,137.78,137.77,1.7668734]
[1764104037035,28.12226246,137.78,137.77,1.7668734]
[1764104037344,28.12226246,137.78,137.76,1.7668734]
[1764104037542,3.01,137.77,137.7,9.4486]
[1764104037737,3.01,137.77,137.75,1.76738982]
[1764104038034,3.06500694,137.77,137.75,1.76738982]
[1764104040237,25.06,137.76,137.75,1.76738982]
[1764104040436,28.11,137.76,137.75,1.76738982]
[1764104041927,3.05,137.75,137.71,2.88]
[1764104042141,3.05,137.75,137.74,1.76737321]
[1764104042542,3.05,137.75,137.71,2.88]
[1764104044745,3.05,137.75,137.74,1.76695502]
[1764104046040,9.5871,137.74,137.68,2.88]
[1764104046342,0.0457486,137.72,137.68,2.88]
[1764104046544,0.0457486,137.72,137.68,9.4198]
[1764104046731,0.0457486,137.72,137.69,2.88]
[1764104048537,0.0457486,137.72,137.7,2.88]
[1764104050444,25.04,137.78,137.71,2.88]
[1764104050741,9.5866,137.75,137.74,1.76168478]
[1764104050944,3.05,137.75,137.74,1.76168478]
[1764104051142,3.05,137.75,137.71,2.88]
[1764104051342,0.05325104,137.74,137.73,2.88]
[1764104051542,0.05160417,137.75,137.73,2.88]
[1764104051747,25.04,137.74,137.73,2.88]
[1764104053146,25.04,137.74,137.72,9.4635486]
[1764104053543,25.04,137.74,137.73,2.88]
[1764104053846,25.09160417,137.75,137.73,2.88]
[1764104054748,25.09160417,137.75,137.72,6.5835486]
[1764104054943,25.09160417,137.75,137.72,9.4635486]
[1764104056850,0.05160417,137.75,137.73,6.5375]
[1764104057051,25.09160417,137.75,137.73,6.5375]
[1764104057649,28.20160417,137.75,137.72,2.9257486]
[1764104057849,28.20160417,137.75,137.74,1.76131824]
[1764104058448,28.20160417,137.75,137.72,2.9257486]
[1764104061352,28.20160417,137.75,137.72,9.4635486]
[1764104062550,28.20160417,137.75,137.74,1.76107778]
[1764104062750,28.20160417,137.75,137.72,9.4635486]
[1764104062944,3.11,137.74,137.72,0.0457486]
[1764104063145,3.11,137.74,137.66,3.03]
[1764104063350,3.11,137.72,137.66,3.03]
[1764104063551,3.11,137.72,137.67,3.03]
[1764104064254,6.5359,137.77,137.71,1.76241211]
[1764104064450,3.15979758,137.75,137.72,1.76241211]
[1764104064647,3.15979758,137.75,137.69,3.03]
[1764104064648,8.75618528,137.74,137.73,1.76241211]
[1764104064846,8.75618528,137.74,137.69,3.03]
[1764104064847,3.11,137.73,137.69,3.03]
[1764104065256,3.11,137.73,137.7,6.5389]
[1764104065447,3.11,137.73,137.7,9.5689]
[1764104066056,3.11,137.73,137.69,3.03]
[1764104066253,3.16438869,137.72,137.66,3.03]
[1764104066444,3.16438869,137.72,137.71,1.7646256]
[1764104066649,8.81525059,137.72,137.68,3.03]
[1764104066853,3.11,137.71,137.66,3.03]
[1764104067049,8.76215382,137.7,137.69,1.76537904]
[1764104067753,3.11,137.69,137.68,1.76537904]
[1764104067949,33.80215382,137.69,137.68,1.76537904]
[1764104068150,30.69215382,137.69,137.68,1.76537904]
[1764104069849,33.80215382,137.69,137.68,1.76537904]
[1764104070247,33.80215382,137.69,137.62,3.03]
[1764104070447,3.11,137.65,137.6,9.5733]
[1764104070648,8.8211523,137.64,137.6,9.5733]
[1764104070847,5.66456677,137.63,137.61,3.03]
[1764104071058,3.15658553,137.64,137.59,3.03]
[1764104071358,5.72081015,137.63,137.59,3.03]
[1764104071560,0.05135798,137.63,137.62,3.03]
[1764104072157,8.5580651,137.68,137.64,3.03]
[1764104072353,5.66575281,137.67,137.65,1.770067]
[1764104072568,5.66575281,137.66,137.65,4.800067]
[1764104072862,5.66575281,137.66,137.62,3.03]
[1764104073049,28.15,137.68,137.65,1.77004454]
[1764104073250,5.66731035,137.67,137.66,1.77004454]
[1764104073465,3.11,137.66,137.63,0.05135798]
[1764104073665,3.11,137.66,137.65,1.77092428]
[1764104073962,8.77751738,137.66,137.65,1.77092428]
[1764104074162,14.24232558,137.66,137.64,1.77092428]
[1764104074363,5.66751738,137.65,137.63,0.05135798]
[1764104074555,3.11,137.66,137.64,1.7711778]
[1764104074750,5.66900729,137.65,137.64,1.7711778]
[1764104075149,8.77900729,137.65,137.64,1.7711778]
[1764104075352,3.11,137.64,137.63,0.05135798]
[1764104075570,8.77900729,137.64,137.63,0.05135798]
[1764104076253,14.24954971,137.64,137.63,0.05135798]
[1764104076960,5.66900729,137.64,137.63,0.05135798]
[1764104077150,30.72900729,137.64,137.63,0.05135798]
[1764104077752,5.66900729,137.64,137.63,0.05135798]
[1764104079166,5.66900729,137.64,137.63,3.08135798]
[1764104080169,8.77900729,137.64,137.63,0.05135798]
[1764104080386,8.77900729,137.64,137.44,17.78730741]
[1764104080387,3.11,137.63,137.5,3.03]
[1764104080674,3.11,137.57,137.54,1.77667381]
[1764104080855,14.25542955,137.56,137.55,1.77667381]
[1764104081057,11.14542955,137.56,137.55,1.77667381]
[1764104081266,5.66900729,137.56,137.55,1.77667381]
[1764104081567,5.66900729,137.56,137.54,9.5764]
[1764104081779,0.05072614,137.57,137.54,3.03]
[1764104081966,5.56046143,137.56,137.55,6.5457]
[1764104082269,5.55562308,137.56,137.55,9.5757]
[1764104083261,2.308e-05,137.56,137.55,9.5757]
[1764104083460,28.17,137.62,137.58,3.03]
[1764104083660,28.17,137.62,137.59,1.76978233]
[1764104083862,3.11,137.61,137.59,1.76978233]
[1764104084284,3.11,137.61,137.58,1.76978233]
[1764104084468,8.56761817,137.61,137.59,1.76914353]
[1764104084774,3.15743482,137.61,137.59,1.76914353]
[1764104084974,8.61505299,137.61,137.59,1.76914353]
[1764104085269,3.15743482,137.61,137.59,1.76914353]
[1764104085667,0.04743482,137.61,137.59,4.79914353]
[1764104085971,0.04743482,137.61,137.6,1.76764219]
[1764104086475,3.15743482,137.61,137.6,1.76764219]
[1764104087265,3.15743482,137.61,137.59,1.76764219]
[1764104087978,3.15743482,137.61,137.58,0.05072614]
[1764104088277,8.61277233,137.61,137.58,0.05072614]
[1764104088463,3.15743482,137.61,137.58,0.05072614]
[1764104089075,28.21743482,137.61,137.58,0.05072614]
[1764104089277,2.93,137.6,137.58,0.05072614]
[1764104089573,2.97743482,137.61,137.59,6.5441]
[1764104090266,2.97743482,137.61,137.58,0.05072614]
[1764104090463,2.97743482,137.61,137.59,1.76580713]
[1764104090870,0.04743482,137.61,137.6,3.17]
[1764104091471,5.45533751,137.68,137.61,3.17]
[1764104091669,2.93,137.66,137.62,1.76470735]
[1764104091969,2.93,137.66,137.61,6.5429]
[1764104092169,2.93,137.66,137.62,1.76491933]
[1764104092374,2.98443603,137.65,137.63,0.0501418]
[1764104094877,2.98443603,137.65,137.63,6.5923418]
[1764104095073,2.98443603,137.65,137.64,1.76405521]
[1764104095278,8.42427377,137.65,137.63,6.5923418]
[1764104095583,2.98443603,137.65,137.63,0.0501418]
[1764104095781,8.42427377,137.65,137.63,0.0501418]
[1764104095981,2.98443603,137.65,137.63,0.0501418]
[1764104096183,8.42427377,137.65,137.63,0.0501418]
[1764104096375,2.98443603,137.65,137.63,0.0501418]
[1764104096776,8.42427377,137.65,137.63,0.0501418]
[1764104096972,2.98443603,137.65,137.63,0.0501418]
[1764104097173,8.42427377,137.65,137.63,0.0501418]
[1764104097373,2.98443603,137.65,137.63,0.0501418]
[1764104097576,8.42427377,137.65,137.63,0.0501418]
[1764104097777,2.98443603,137.65,137.63,0.0501418]
[1764104097977,8.42427377,137.65,137.63,0.0501418]
[1764104098285,2.98443603,137.65,137.63,0.0501418]
[1764104098976,2.98443603,137.65,137.63,6.5923418]
[1764104099170,2.98443603,137.65,137.63,0.0501418]
[1764104099983,2.93,137.64,137.63,0.0501418]
[1764104100184,5.44619976,137.64,137.63,3.1601418]
[1764104100480,2.98443603,137.65,137.63,0.0501418]
[1764104100684,0.05443603,137.65,137.64,1.76713352]
[1764104100987,0.05443603,137.65,137.64,1.76728528]
[1764104101168,0.05443603,137.65,137.64,4.87728528]
[1764104101370,5.44821971,137.67,137.65,9.6513]
[1764104101582,2.93,137.69,137.66,1.76783377]
[1764104101885,8.37754517,137.68,137.66,1.76783377]